Cogmind - Beta 16.1 @@@ ROGUE MODE // 2026.03.14 @ 06:11:16 Player: obl-vn Result: Destroyed by M Guard with Cooled Nova Cannon Performance ------------- Evolutions (9) 4500 Regions Visited (15) 3000 Robots Destroyed (312) 1560 Value Destroyed (14881) 14881 Prototype IDs (5) 100 Alien Tech Used (0) 0 Bonus (4002) 4002 TOTAL SCORE: 28043 Bonus ------- High Alert Combat Kills 2877 Follower Combat Kills 909 Built Enhanced Grunts 300 Friendly Fire -84 Cogmind --------- Core Integrity 0/1600 Matter 162/300 Energy 98/100 System Corruption 42% Temperature Cool (9) Movement Core (50) Location -1/Command Parts ------- > --- POWER (2) -------- (None) > --- PROPULSION (6) --- (None) > --- UTILITY (9) ------ (None) > --- WEAPON (8) ------- (None) > --- INVENTORY (5) ---- Myomer Leg Advanced Heat Sink Peak State ------------ > --- POWER ------------ Micro Antimatter Reactor Quantum Reactor > --- PROPULSION ------- Medium Treads Medium Treads Armored Medium Treads Advanced Medium Treads Biometal Heavy Treads > --- UTILITY ---------- Advanced Heat Sink Advanced Cooling System High-capacity Storage Unit Advanced Targeting Computer Core Analyzer Advanced Weapon Cycler Advanced Phase Shifter Centrium Medium Armor Plating Graphene Brace > --- WEAPON ----------- Hypervelocity Railgun Hypervelocity Railgun Hypervelocity Railgun Hypervelocity Railgun Hypervelocity Railgun Linear Accelerator Linear Accelerator Linear Accelerator > --- INVENTORY -------- Medium Treads Advanced Heat Sink Advanced Heat Sink Advanced Phase Shifter Improved Light Armor Plating Centrium Medium Armor Plating Improved System Restoration Module KE Penetrator KE Penetrator KE Penetrator KE Penetrator KE Penetrator KE Penetrator KE Penetrator KE Penetrator KE Penetrator Railgun Advanced KE Penetrator Magnetic Acceleration Cannon Improved Plasma Cutter [Rating: 184] Favorites ----------- Power Micro Antimatter Reactor Engine Improved Deuterium Engine Power Core Neutrino Core Reactor Micro Antimatter Reactor Propulsion Light Treads Treads Light Treads Leg Myomer Leg Wheel Compact Wheel Utility Core Analyzer Device Advanced Heat Sink Storage High-capacity Storage Unit Processor Core Analyzer Hackware Hacking Suite Protection Centrium Medium Armor Plating Weapon KE Penetrator Energy Gun Small Laser Ballistic Gun KE Penetrator Ballistic Cannon Advanced Assault Cannon Launcher Heavy Rocket Launcher Special Weapon Improved Plasma Cutter Slashing Weapon Phasing Sabre Build | -11 -10 -9 -9 -8 -7 -6 -6 -6 -6 -5 -4 -3 -2 -1 -1 ------- Run | Yrd Mat Mat Sto Mat Fac Fac Ext Cet Arc Fac Fac Res Res Acc Com Slots Evolved 18 | . . 2 . 2 2 2 . . . 2 2 2 2 2 . Power 1 | . . . . . . . . . . . . 1 . . . Propulsion 4 | . . . . . 1 1 . . . . 1 . 1 . . Utility 7 | . . . . 2 1 1 . . . 1 . 1 . 1 . Weapon 6 | . . 2 . . . . . . . 1 1 . 1 1 . Parts Attached 181 | 6 4 12 10 8 14 3 13 6 2 4 8 6 15 34 36 Power 17 | 1 . 3 1 . 1 . 2 . . 1 . 2 1 1 4 Engine 7 | 1 . 3 1 . 1 . 1 . . . . . . . . Core 3 | . . . . . . . 1 . . 1 . 1 . . . Reactor 7 | . . . . . . . . . . . . 1 1 1 4 Propulsion 47 | 2 1 2 3 3 1 1 5 . 1 1 . . 6 10 11 Treads 44 | 2 1 2 3 3 1 1 5 . 1 1 . . 5 10 9 Leg 2 | . . . . . . . . . . . . . . . 2 Wheel 1 | . . . . . . . . . . . . . 1 . . Hover . | . . . . . . . . . . . . . . . . Flight . | . . . . . . . . . . . . . . . . Utility 49 | 1 2 2 2 5 6 2 2 4 . 2 1 3 1 10 6 Device 28 | . . . 1 3 2 . 1 2 . 2 1 2 . 8 6 Storage 3 | 1 1 1 . . . . . . . . . . . . . Processor 4 | . . . . 1 . 1 . . . . . . 1 1 . Hackware 1 | . . . . 1 . . . . . . . . . . . Protection 13 | . 1 1 1 . 4 1 1 2 . . . 1 . 1 . Artifact . | . . . . . . . . . . . . . . . . Weapon 68 | 2 1 5 4 . 6 . 4 2 1 . 7 1 7 13 15 Energy Gun 4 | 1 1 1 . . . . . . . . . . . . 1 Energy Cannon . | . . . . . . . . . . . . . . . . Ballistic Gun 41 | 1 . 4 4 . 1 . . 1 . . 6 . 5 11 8 Ballistic Cannon 20 | . . . . . 4 . 3 1 1 . 1 1 2 1 6 Launcher 1 | . . . . . 1 . . . . . . . . . . Special Weapon 1 | . . . . . . . . . . . . . . 1 . Impact Weapon . | . . . . . . . . . . . . . . . . Slashing Weapon 1 | . . . . . . . 1 . . . . . . . . Piercing Weapon . | . . . . . . . . . . . . . . . . Special Melee Weapon . | . . . . . . . . . . . . . . . . Unidentified Prototypes 5 | . . . 1 . . . . 3 . . . . 1 . . Parts Lost 77 | . . . . . . . 1 . . . . 4 3 21 48 Power 3 | . . . . . . . . . . . . 1 . . 2 Propulsion 25 | . . . . . . . 1 . . . . . 3 7 14 Utility 16 | . . . . . . . . . . . . 2 . 6 8 Weapon 33 | . . . . . . . . . . . . 1 . 8 24 Highest Loss Streak 27 | . . . . . . . 1 . . . . 2 3 8 27 To Critical Strikes . | . . . . . . . . . . . . . . . . Average Backups 13 | . 6 8 9 10 9 8 8 8 12 18 19 19 19 18 17 Power . | . . . . . . . . . . 2 1 . . . 1 Propulsion 1 | . . 1 1 2 1 . . 1 1 1 1 2 2 1 4 Utility 5 | . 5 7 6 4 3 4 5 5 6 10 9 7 5 5 2 Weapon 5 | . . . 1 4 4 4 3 2 3 3 5 7 9 10 8 Tool/Special . | . . . . . . . . . . . . . . . . Unused Backups 26 | . 1 1 5 . 2 . 1 2 . 2 2 5 1 1 3 Power 3 | . . . . . . . . . . 2 1 . . . . Propulsion . | . . . . . . . . . . . . . . . . Utility 16 | . . 1 3 . 1 . 1 2 . . . 4 1 1 2 Weapon 6 | . 1 . 2 . 1 . . . . . 1 . . . 1 Tool/Special 1 | . . . . . . . . . . . . 1 . . . Average Slot Usage (%) 97 | . 98 96 98 97 99 99 99 100 100 99 99 97 98 94 91 Engine 3 | . 14 11 11 9 7 6 3 . . . . . . . . Core 1 | . . . . . . . 2 6 6 5 5 6 3 . . Reactor 2 | . . . . . . . . . . . . . 4 8 7 Treads 22 | . 28 21 22 18 23 26 25 26 26 23 25 23 24 19 18 Device 14 | . . . 9 7 10 13 13 7 6 11 14 18 17 20 22 Storage 6 | . 14 11 11 9 7 6 6 6 6 5 5 4 4 4 3 Processor 7 | . . . . 6 7 12 13 13 13 11 5 4 6 8 7 Protection 5 | . 12 11 1 9 11 6 6 11 13 11 10 8 4 2 . Ballistic Gun 20 | . 14 39 43 36 9 . . . . . 22 26 21 24 28 Ballistic Cannon 10 | . . . . . 20 26 25 26 23 28 8 . 7 7 2 Peak Build Rating 184 | 6 9 20 24 22 38 50 57 69 70 86 108 131 167 184 180 Average Rating 97 | 4 8 18 20 19 34 48 53 63 67 81 105 118 153 172 165 On Entrance 63 | . 6 9 20 17 21 38 50 57 66 68 86 108 131 167 175 Avg Prop Armor Cover (%) 4 | . . . . . . . . . . . . 4 . . . Naked Turns 18 | . . . . . . . . . . . . . . . 18 Heaviest Build 184 | 13 20 36 37 38 55 54 54 58 88 104 116 128 144 154 184 Greatest Support 210 | 40 40 40 40 40 60 90 98 98 101 108 128 128 190 210 210 Greatest Overweight (x) 1 | . . 1 . . 1 . . . . . . 1 1 . 1 Average Overweight (x) . | . . . . . . . . . . . . . . . . Largest Inventory Capacity 20 | 8 20 10 10 10 10 10 10 10 20 20 20 20 20 20 20 Average Capacity 15 | 7 8 8 10 10 10 10 10 10 16 20 20 20 20 20 19 Most Carried 20 | 5 8 10 10 10 10 10 10 10 16 20 20 20 20 20 20 Average Carried 14 | . 7 8 9 10 9 9 9 9 12 18 19 19 19 18 17 Final Capacity 20 | 8 8 10 10 10 10 10 10 10 20 20 20 20 20 20 5 Final Carried 20 | . 8 9 10 10 10 10 10 9 16 20 20 20 20 20 2 Class Distribution -------------------- 47% | Scavenger-Executioner 25% | Scavenger-Gunner 7% | Gunner 6% | Tank 4% | Commander-Gunner 4% | Scavenger-Tank 3% | Mutant Dominant Class ---------------- Mutant | -10/Materials Tank | -9/Materials Gunner | -9/Storage Scavenger-Gunner | -8/Materials Scavenger-Tank | -7/Factory Scavenger-Gunner | -6/Factory Scavenger-Gunner | -6/Extension Scavenger-Gunner | -6/Cetus Scavenger-Gunner | -6/Archives Scavenger-Gunner | -5/Factory Scavenger-Executioner | -4/Factory Scavenger-Executioner | -3/Research Scavenger-Executioner | -2/Research Scavenger-Executioner | -1/Access Scavenger-Executioner | -1/Command Resources | -11 -10 -9 -9 -8 -7 -6 -6 -6 -6 -5 -4 -3 -2 -1 -1 ----------- Run | Yrd Mat Mat Sto Mat Fac Fac Ext Cet Arc Fac Fac Res Res Acc Com Matter Collected 16400 | 225 108 583 715 584 855 41 1524 188 167 140 931 1175 1221 3417 4526 Remotely . | . . . . . . . . . . . . . . . . Salvage Created 17158 | . 247 574 766 489 801 . 699 36 191 . 748 1891 1491 4240 4985 Parts 870 | . 13 33 47 25 28 . 26 . 16 . 40 100 82 259 201 Haulers Intercepted 12 | . . 2 5 2 . . . . . . 1 1 . 1 . Recyclers Shooed 9 | . . 1 . . . . 1 . . . . 1 . 4 2 Parts Field Recycled . | . . . . . . . . . . . . . . . . Retrieved Matter . | . . . . . . . . . . . . . . . . Parts Self-Destructed . | . . . . . . . . . . . . . . . . Prevented . | . . . . . . . . . . . . . . . . Parts Restored . | . . . . . . . . . . . . . . . . Kills | -11 -10 -9 -9 -8 -7 -6 -6 -6 -6 -5 -4 -3 -2 -1 -1 ------- Run | Yrd Mat Mat Sto Mat Fac Fac Ext Cet Arc Fac Fac Res Res Acc Com Combat Hostiles Destroyed 217 | . 5 11 13 8 13 . 16 1 1 . 14 17 11 48 59 Guns 184 | . 5 11 13 8 5 . . . . . 12 16 10 47 57 Cannons 31 | . . . . . 8 . 16 1 1 . 1 1 1 . 2 AOE 2 | . . . . . . . . . . . 1 . . 1 . Classes Destroyed 18 | . 1 6 4 1 2 . 2 . . . . . . . 2 Worker 20 | . . . 2 . 3 . . . . . 1 2 3 4 5 Builder 19 | . . 1 1 . . . . . . . 3 6 4 4 . Tunneler 2 | . . 1 . . . . . . . . . . . 1 . Hauler 12 | . . 2 5 2 . . . . . . 1 1 . 1 . Recycler 22 | . . 2 1 . 4 . 2 . . . . 3 3 2 5 Mechanic 3 | . . . 1 . . . . . . . . . . . 2 Operator 7 | . . . . . . . 1 . 4 . . 1 . . 1 Drone 1 | . . . 1 . . . . . . . . . . . . Watcher 10 | . . . 1 2 1 . 1 . . . . 1 . 4 . Swarmer 41 | . . 5 7 3 . . 4 . . . 4 . . 7 11 Grunt 67 | . 5 1 2 4 8 . 3 . . . 5 6 1 7 25 Brawler 1 | . . . . . . . . . . . . . . . 1 Duelist 5 | . . . . . 1 . 1 . . . . . . . 3 Protector 2 | . . . . . . . . . . . . . . . 2 Sentry 29 | . . 5 4 . 3 . 6 . 1 . 1 2 1 2 4 Hunter 24 | . . . . 1 . . 1 . . . . 2 7 10 3 Programmer 43 | . . . . . 1 . . . . . 3 7 2 21 9 Behemoth 3 | . . . . . . . 1 . . . 1 . . 1 . Cetus Guard 1 | . . . . . . . . 1 . . . . . . . Combat Programmer 1 | . . . . . . . . . . . . . . . 1 Best Kill Streak 14 | . 2 4 7 4 5 . 6 1 2 . 9 13 14 11 14 Combat Bots Only 13 | . 2 3 4 3 5 . 6 1 1 . 8 6 5 9 13 Max Kills in Single Turn 3 | . 1 2 2 3 2 . 1 1 1 . 3 3 3 3 3 Gunslinging 2 | . . 1 . 1 . . . . . . 1 . . 2 2 Exploded 1 | . . . . . . . . . . . 1 . . 1 . Melee . | . . . . . . . . . . . . . . . . Uniques/NPCs Destroyed . | . . . . . . . . . . . . . . . . Combat | -11 -10 -9 -9 -8 -7 -6 -6 -6 -6 -5 -4 -3 -2 -1 -1 -------- Run | Yrd Mat Mat Sto Mat Fac Fac Ext Cet Arc Fac Fac Res Res Acc Com Hostile Shots Fired 1615 | . 20 58 43 28 98 . 200 9 . 14 60 64 118 349 554 Missed 585 | . 5 22 14 5 39 . 71 2 . 4 15 17 32 151 208 Intercepted 15 | . . . . . . . . . . . . . . . 15 Hits 1030 | . 15 36 29 23 59 . 129 7 . 10 45 47 86 198 346 Melee 12 | . . . . . 2 . . . . . . . . . 10 Projectile 1018 | . 15 36 29 23 57 . 129 7 . 10 45 47 86 198 336 AOE 37 | . . . . . . . . . . . . . . . 37 Critical Strikes 62 | . . 1 . . 2 . . . . . 3 7 2 10 37 Actively Blocked 56 | . . . . . . . . . . . . 7 2 10 37 Part Disruptions 4 | . . . . . . . . . . . . 1 . 1 2 Damage Taken 23321 | . 188 393 294 245 784 . 1384 143 . 200 934 1137 1744 4532 11343 Core 2165 | . 37 27 35 48 109 . 119 26 . . 40 40 47 294 1343 Absorbed by Shields 39 | . . . . . . . . 39 . . . . . . . Reduced by Siege Mode 606 | . . . . . . . . . . . . . . . 606 Ignored by Resistances 15 | . . . . . . . 10 5 . . . . . . . Regen/Repaired (Parts) 358 | . . . 164 . . . . . . . . . . . 194 Core Remaining (%) 91 | 100 85 . 84 91 84 . . . 82 100 96 96 96 . . Volleys Fired 513 | . 16 23 42 27 40 . 42 6 4 5 37 37 24 101 109 Largest 8 | . 2 4 4 4 4 . 4 4 4 5 6 6 7 8 8 Hottest 380 | . 60 100 100 92 160 . 164 164 164 204 255 219 308 362 380 Shots Fired 2657 | . 32 86 168 108 142 . 125 24 16 25 157 212 168 600 794 Gun 2187 | . 32 86 168 108 56 . . . . . 127 196 120 567 727 Cannon 469 | . . . . . 85 . 125 24 16 25 30 16 48 33 67 Launcher 1 | . . . . . 1 . . . . . . . . . . Special . | . . . . . . . . . . . . . . . . Kinetic 2638 | . 16 86 168 108 141 . 125 24 16 25 157 212 168 600 792 Thermal 18 | . 16 . . . . . . . . . . . . . 2 Explosive 1 | . . . . . 1 . . . . . . . . . . Electromagnetic . | . . . . . . . . . . . . . . . . Robot Hit Streak 25 | . 15 7 15 12 24 . 24 14 8 5 10 18 11 21 25 Robot Miss Streak 18 | . 1 18 9 2 1 . 1 1 2 4 3 4 5 5 4 Penetration Max 2 | . . . . . . . . . . . . 1 2 2 2 Secondary Targets 39 | . . 4 1 1 . . . . . . 3 . . 8 22 Max Gunslinging Chain 2 | . . 1 1 1 . . . . . . 1 . . 2 2 Shots Hit Robots 1566 | . 24 45 93 70 96 . 75 21 16 9 88 120 74 357 478 Core Hits 725 | . 11 26 35 22 37 . 35 7 7 3 35 70 41 166 230 Critical Kills 57 | . . . . . . . . . . . 1 5 14 28 9 Critical Parts Destroyed 67 | . . 1 1 . . . . . . . 4 3 7 37 14 Critical Strikes 152 | . . 1 1 . 1 . 8 1 . 2 5 9 21 72 31 Destroy 132 | . . 1 1 . . . . . . . 5 9 21 70 25 Blast 19 | . . . . . 1 . 7 1 . 2 . . . 2 6 Sever 1 | . . . . . . . 1 . . . . . . . . Melee Attacks 13 | . . . . . . . 7 . 6 . . . . . . Impact . | . . . . . . . . . . . . . . . . Slashing 13 | . . . . . . . 7 . 6 . . . . . . Piercing . | . . . . . . . . . . . . . . . . Sneak Attacks 9 | . . . . . . . 3 . 6 . . . . . . Combat Hostiles . | . . . . . . . . . . . . . . . . Follow-up Attacks . | . . . . . . . . . . . . . . . . Damage Inflicted 40846 | . 282 878 1621 945 2269 . 2554 573 978 300 3260 3560 1326 8015 14285 Guns 30240 | . 282 878 1621 945 712 . . . . . 1918 3299 850 7378 12357 Cannons 8448 | . . . . . 1557 . 2194 573 295 300 479 261 476 451 1862 Explosions 1089 | . . . . . . . . . . . 844 . . 186 59 Melee 1033 | . . . . . . . 352 . 681 . . . . . . Ramming 36 | . . . . . . . 8 . 2 . 19 . . . 7 Kinetic 38514 | . 141 878 1621 945 2269 . 2194 573 295 300 2397 3560 1326 7829 14186 Thermal 896 | . 141 . . . . . . . . . 722 . . . 33 Explosive 181 | . . . . . . . . . . . 122 . . . 59 Electromagnetic 186 | . . . . . . . . . . . . . . 186 . Impact . | . . . . . . . . . . . . . . . . Slashing 1033 | . . . . . . . 352 . 681 . . . . . . Piercing . | . . . . . . . . . . . . . . . . Highest Corruption 42 | . . . . . . . . . . . 3 4 . 14 42 Average Corruption 9 | . . . . . . . . . . . 2 3 . 5 16 Corruption Purged 2 | . . . . . . . . . . . . . . 2 . Corruption Blocked . | . . . . . . . . . . . . . . . . Effects 174 | . . . . . . . . . . . 4 10 . 54 106 Message Errors 38 | . . . . . . . . . . . 2 3 . 13 20 Matter Fused 35 | . . . . . . . . . . . . . . 13 22 Heat Flow Errors 16 | . . . . . . . . . . . . 2 . 5 9 Energy Discharges 15 | . . . . . . . . . . . 1 3 . 3 8 Parts Rejected 1 | . . . . . . . . . . . . . . . 1 Parts Fused 1 | . . . . . . . . . . . . . . . 1 Data Loss (minor) 21 | . . . . . . . . . . . . 1 . 8 12 Data Loss (major) 6 | . . . . . . . . . . . 1 . . 1 4 Misfires 5 | . . . . . . . . . . . . . . 2 3 Alerts 4 | . . . . . . . . . . . . . . 3 1 Misdirections 3 | . . . . . . . . . . . . . . . 3 Weapon Failures 29 | . . . . . . . . . . . . 1 . 6 22 Overload Shots . | . . . . . . . . . . . . . . . . Overflow Damage 613 | . . . . . 77 . 75 . 280 . 167 . . 14 . Projectiles 129 | . . . . . 77 . 40 . . . . . . 12 . Explosions 169 | . . . . . . . . . . . 167 . . 2 . Melee 315 | . . . . . . . 35 . 280 . . . . . . Knockbacks 56 | . . . . . 17 . 11 . . 5 2 3 6 6 6 Impact . | . . . . . . . . . . . . . . . . Kinetic 55 | . . . . . 16 . 11 . . 5 2 3 6 6 6 Secondary 1 | . . . . . 1 . . . . . . . . . . Self-Inflicted Damage 27 | . . . . . 27 . . . . . . . . . . Shots 1 | . . . . . 1 . . . . . . . . . . Rammed 5 | . . . . . . . 3 . 1 . 1 . . . . Targets Rammed 6 | . . . . . . . 3 . 1 . 1 . . . 1 Kicked . | . . . . . . . . . . . . . . . . Crushed 1 | . . . . . . . . . . . . . . . 1 Highest Temperature 372 | . 102 176 195 62 62 . . . 6 84 . 97 264 342 372 Average Temperature 55 | . 31 46 47 21 33 . . . 2 40 . 36 84 77 69 Received Heat Transfer 1920 | . 102 81 51 63 288 . 261 9 . 39 135 99 . 72 720 Effects 1 | . . . . . . . . . . . . . . . 1 Shutdowns 1 | . . . . . . . . . . . . . . . 1 Siege Activations 2 | . . . . . . . . . . . . . . . 2 Total Turns 55 | . . . . . . . . . . . . . . . 55 Longest Duration 41 | . . . . . . . . . . . . . . . 41 Martial Activations . | . . . . . . . . . . . . . . . . Shielding Activations . | . . . . . . . . . . . . . . . . Robots Disrupted . | . . . . . . . . . . . . . . . . Combat Hostiles . | . . . . . . . . . . . . . . . . Robots Corrupted . | . . . . . . . . . . . . . . . . Combat Hostiles . | . . . . . . . . . . . . . . . . Parts Fried 1 | . . . . . . . . . . . . . . 1 . Impact Corruptions . | . . . . . . . . . . . . . . . . Robots Melted . | . . . . . . . . . . . . . . . . Combat Hostiles . | . . . . . . . . . . . . . . . . Parts Melted 1 | . . . . . . . . . . . 1 . . . . Heat Transferred 844 | . 325 . . . . . . . . . 500 . . . 19 Parts Sabotaged 4 | . . . . . . . . . . . . . . . 4 Parts Stolen . | . . . . . . . . . . . . . . . . Parts Stripped . | . . . . . . . . . . . . . . . . Power Chain Reactions . | . . . . . . . . . . . . . . . . Alert | -11 -10 -9 -9 -8 -7 -6 -6 -6 -6 -5 -4 -3 -2 -1 -1 ------- Run | Yrd Mat Mat Sto Mat Fac Fac Ext Cet Arc Fac Fac Res Res Acc Com Maximum Alert Level 4 | . . . . . . . . . . 2 2 2 2 3 4 Low Security (%) 55 | 100 100 100 100 100 100 100 100 100 100 77 31 66 . . . Level 1 18 | . . . . . . . . . . 19 51 31 75 51 . Level 2 13 | . . . . . . . . . . 3 17 1 23 38 21 Level 3 8 | . . . . . . . . . . . . . . 9 44 Level 4 4 | . . . . . . . . . . . . . . . 33 Level 5 . | . . . . . . . . . . . . . . . . High Security . | . . . . . . . . . . . . . . . . Max Security . | . . . . . . . . . . . . . . . . Peak Influence 1490 | . 51 144 135 115 144 60 170 66 196 473 475 404 445 848 1490 Initial 541 | . . 8 50 15 44 60 . 25 . 17 227 232 218 242 541 Average 293 | . 19 56 78 50 53 16 56 20 116 72 243 178 298 443 988 Influence Increases 7898 | . 121 346 415 285 427 5 588 126 256 553 602 546 407 1513 1708 Destroy 0b10 Robot/C 4700 | . 100 220 260 160 260 . 360 80 80 220 300 340 220 960 1140 Destroy 0b10 Robot/NC 510 | . . 30 60 20 40 . 25 5 25 . 30 70 50 80 75 Destroy Leader 978 | . 20 64 72 38 72 . 54 . . 30 74 84 50 220 200 Allied During Kill 510 | . . . . . . . 97 37 105 237 34 . . . . Successful Hack 52 | . . . 5 5 9 5 21 . . . . . . 7 . Disable Machine 330 | . . 30 15 15 . . 15 . 45 30 75 15 . 90 . Anti-Garrison Action 50 | . . . . . . . . . . . . . . . 50 Destroy Structure 603 | . 1 2 3 2 31 . 16 4 1 36 74 22 87 96 228 Lose Combat Pursuer 165 | . . . . 45 15 . . . . . 15 15 . 60 15 Influence Decreases 6724 | . 100 247 498 223 403 128 542 172 206 138 624 601 390 1071 1381 Entered New Map 1365 | . . 13 70 22 55 63 . 21 . 33 238 211 170 163 306 Time Decay 4305 | . 100 234 428 201 348 65 426 93 206 85 286 350 190 698 595 Lost Part 770 | . . . . . . . 10 . . . . 40 30 210 480 Lost Ally 284 | . . . . . . . 106 58 . 20 100 . . . . Squads Dispatched 46 | . 1 . . 1 8 . 4 . . 1 4 1 2 13 11 Investigation 4 | . . . . . 1 . 2 . . . . . . . 1 Extermination 16 | . . . . . 1 . . . . 1 1 1 1 7 4 Reinforcement 13 | . 1 . . 1 2 . 2 . . . 1 . 1 3 2 Assault 4 | . . . . . . . . . . . . . . . 4 Garrison 9 | . . . . . 4 . . . . . 2 . . 3 . Intercept . | . . . . . . . . . . . . . . . . Searches Triggered . | . . . . . . . . . . . . . . . . Construction Impeded 3 | . . . . 1 1 . 1 . . . . . . . . Haulers Reinforced 2 | . . . . . . . . . . . 1 . . 1 . Active Scanning Responses . | . . . . . . . . . . . . . . . . Cargo Convoy Interrupts . | . . . . . . . . . . . . . . . . Stealth | -11 -10 -9 -9 -8 -7 -6 -6 -6 -6 -5 -4 -3 -2 -1 -1 --------- Run | Yrd Mat Mat Sto Mat Fac Fac Ext Cet Arc Fac Fac Res Res Acc Com Distress Signals 18 | . . 2 2 2 1 . 2 1 . . 2 1 1 4 . Communications Jammed . | . . . . . . . . . . . . . . . . Distress Signals . | . . . . . . . . . . . . . . . . Times Spotted 311 | . 8 15 15 13 20 . 24 5 6 11 16 22 12 66 78 Peak Tracking Total 11 | . 3 4 4 5 5 . 7 5 1 5 6 6 6 6 11 Tactical Retreats 11 | . . . . 3 1 . . . . . 1 1 . 4 1 Traps | -11 -10 -9 -9 -8 -7 -6 -6 -6 -6 -5 -4 -3 -2 -1 -1 ------- Run | Yrd Mat Mat Sto Mat Fac Fac Ext Cet Arc Fac Fac Res Res Acc Com Traps Triggered 10 | . . 2 . . 1 . . . . . . 2 1 3 1 Indirectly 1 | . . . . . . . . . . . . . . 1 . Trap Hack Attempts . | . . . . . . . . . . . . . . . . Triggered . | . . . . . . . . . . . . . . . . Disarmed . | . . . . . . . . . . . . . . . . Reprogrammed . | . . . . . . . . . . . . . . . . Reused . | . . . . . . . . . . . . . . . . Traps Extracted . | . . . . . . . . . . . . . . . . Installed . | . . . . . . . . . . . . . . . . Triggered . | . . . . . . . . . . . . . . . . Machines | -11 -10 -9 -9 -8 -7 -6 -6 -6 -6 -5 -4 -3 -2 -1 -1 ---------- Run | Yrd Mat Mat Sto Mat Fac Fac Ext Cet Arc Fac Fac Res Res Acc Com Machines Disabled 24 | . . 2 1 1 . . 1 . 3 2 5 1 . 6 2 Max in Single Turn 3 | . . 1 1 1 . . 1 . 1 . 3 1 . 2 2 Garrison Access 1 | . . . . . . . . . . . . . . 1 . Phase Generator 1 | . . . . . . . . . . . . . . . 1 Energy Cycler 1 | . . . . . . . 1 . . . . . . . . Machines Repaired . | . . . . . . . . . . . . . . . . Machines Dismantled 2 | . . . . . . . . . . . . . . 2 . Machines Sabotaged . | . . . . . . . . . . . . . . . . Overloaded Fab Kills . | . . . . . . . . . . . . . . . . Hacking | -11 -10 -9 -9 -8 -7 -6 -6 -6 -6 -5 -4 -3 -2 -1 -1 --------- Run | Yrd Mat Mat Sto Mat Fac Fac Ext Cet Arc Fac Fac Res Res Acc Com Machines Accessed 34 | . 1 4 7 1 6 2 7 . . 1 . . . 3 2 Terminals 26 | . 1 4 6 1 3 1 7 . . 1 . . . 2 . Fabricators . | . . . . . . . . . . . . . . . . Repair Stations 4 | . . . 1 . 1 . . . . . . . . . 2 Recycling Units . | . . . . . . . . . . . . . . . . Scanalyzers 2 | . . . . . 1 1 . . . . . . . . . Garrison Access 2 | . . . . . 1 . . . . . . . . 1 . Total Hacks 66 | . 1 11 17 2 14 3 10 . . 2 . . . 4 2 Successful 35 | . 1 6 10 1 7 2 4 . . 1 . . . 2 1 Failed 31 | . . 5 7 1 7 1 6 . . 1 . . . 2 1 Catastrophic 8 | . . . 1 . 2 . 2 . . 1 . . . 1 1 Database Lockouts . | . . . . . . . . . . . . . . . . Manual 30 | . . 10 4 . 6 2 2 1 1 2 . . . . 2 Terminals 50 | . 1 11 13 2 6 2 10 . . 2 . . . 3 . Fabricators . | . . . . . . . . . . . . . . . . Repair Stations 9 | . . . 4 . 3 . . . . . . . . . 2 Recycling Units . | . . . . . . . . . . . . . . . . Scanalyzers 4 | . . . . . 3 1 . . . . . . . . . Garrison Access 3 | . . . . . 2 . . . . . . . . 1 . Terminal Hacks 12 | . 1 1 4 1 . . 4 . . . . . . 1 . Robot Analysis 1 | . . . 1 . . . . . . . . . . . . Open Door 4 | . . . 1 . . . 2 . . . . . . 1 . Unreport Threat 1 | . . . . . . . 1 . . . . . . . . Locate Traps 4 | . . 1 2 . . . 1 . . . . . . . . Zone Layout 2 | . 1 . . 1 . . . . . . . . . . . Fabricator Hacks . | . . . . . . . . . . . . . . . . Repair Station Hacks 5 | . . . 4 . 1 . . . . . . . . . . Scan Component 3 | . . . 2 . 1 . . . . . . . . . . Repair 2 | . . . 2 . . . . . . . . . . . . Recycling Unit Hacks . | . . . . . . . . . . . . . . . . Scanalyzer 4 | . . . . . 3 1 . . . . . . . . . Retrieve Study 4 | . . . . . 3 1 . . . . . . . . . Garrison Access Hacks 1 | . . . . . . . . . . . . . . 1 . Seal Access 1 | . . . . . . . . . . . . . . 1 . Unauthorized Hacks 13 | . . 5 2 . 3 1 . . . 1 . . . . 1 Terminals 12 | . . 5 2 . 3 1 . . . 1 . . . . . Track 1 | . . 1 . . . . . . . . . . . . . Botnet 9 | . . 3 2 . 2 1 . . . 1 . . . . . Operators 2 | . . 1 . . 1 . . . . . . . . . . Fabricators . | . . . . . . . . . . . . . . . . Repair Stations 1 | . . . . . . . . . . . . . . . 1 Patch 1 | . . . . . . . . . . . . . . . 1 Recycling Units . | . . . . . . . . . . . . . . . . Scanalyzers . | . . . . . . . . . . . . . . . . Garrison Access . | . . . . . . . . . . . . . . . . Data Cores Recovered . | . . . . . . . . . . . . . . . . Used . | . . . . . . . . . . . . . . . . Hacking Detections 19 | . . 2 4 1 5 1 3 . . 1 . . . 1 1 Full Trace Events 3 | . . . . . 1 . 2 . . . . . . . . Feedback Events . | . . . . . . . . . . . . . . . . Feedback Blocked . | . . . . . . . . . . . . . . . . Robot Schematics Acquired . | . . . . . . . . . . . . . . . . Robots Built . | . . . . . . . . . . . . . . . . Authchips . | . . . . . . . . . . . . . . . . Time . | . . . . . . . . . . . . . . . . Total Robot Build Rating . | . . . . . . . . . . . . . . . . Part Schematics Acquired . | . . . . . . . . . . . . . . . . Parts Built . | . . . . . . . . . . . . . . . . Authchips . | . . . . . . . . . . . . . . . . Time . | . . . . . . . . . . . . . . . . Total Part Build Rating . | . . . . . . . . . . . . . . . . Part Studies Acquired 4 | . . . . . 3 1 . . . . . . . . . Parts Repaired 2 | . . . 2 . . . . . . . . . . . . Time 76 | . . . 76 . . . . . . . . . . . . Parts Recycled . | . . . . . . . . . . . . . . . . Recycled Matter . | . . . . . . . . . . . . . . . . Retrieved Matter . | . . . . . . . . . . . . . . . . Retrieved Components . | . . . . . . . . . . . . . . . . Parts Scanalyzed . | . . . . . . . . . . . . . . . . Part Schematics Acquired . | . . . . . . . . . . . . . . . . Parts Damaged . | . . . . . . . . . . . . . . . . Bothacking | -11 -10 -9 -9 -8 -7 -6 -6 -6 -6 -5 -4 -3 -2 -1 -1 ------------ Run | Yrd Mat Mat Sto Mat Fac Fac Ext Cet Arc Fac Fac Res Res Acc Com Used RIF Installer . | . . . . . . . . . . . . . . . . Robots Hacked . | . . . . . . . . . . . . . . . . Non-combat . | . . . . . . . . . . . . . . . . Combat . | . . . . . . . . . . . . . . . . Robot Hacks Applied . | . . . . . . . . . . . . . . . . Relay Couplers Released . | . . . . . . . . . . . . . . . . Fabnet Peak Effective % . | . . . . . . . . . . . . . . . . Robots Rewired 11 | . . . . . . . 11 . . . . . . . . Allies Hacked 1 | . . . . . . . . . . . 1 . . . . Hacks Repelled . | . . . . . . . . . . . . . . . . Allies | -11 -10 -9 -9 -8 -7 -6 -6 -6 -6 -5 -4 -3 -2 -1 -1 -------- Run | Yrd Mat Mat Sto Mat Fac Fac Ext Cet Arc Fac Fac Res Res Acc Com Total Allies 23 | . . . . . . . 18 5 . . . . . . . Largest Group 9 | . . . . . . . 9 9 8 7 5 . . . . Highest-Rated Group 596 | . . . . . . . 322 596 500 469 340 . . . . Highest-Rated Ally 152 | . . . . . . . 152 152 96 96 96 . . . . Total Orders 4 | . . . . . . . 4 . . . . . . . . STAY 2 | . . . . . . . 2 . . . . . . . . FOLLOW 2 | . . . . . . . 2 . . . . . . . . Ally Attacks 139 | . . . . . . . 53 23 12 28 23 . . . . Total Damage 3387 | . . . . . . . 939 498 449 890 611 . . . . Kills 25 | . . . . . . . 3 4 4 12 2 . . . . Allies Corrupted . | . . . . . . . . . . . . . . . . Allies Melted 1 | . . . . . . . . . . . 1 . . . . Intel | -11 -10 -9 -9 -8 -7 -6 -6 -6 -6 -5 -4 -3 -2 -1 -1 ------- Run | Yrd Mat Mat Sto Mat Fac Fac Ext Cet Arc Fac Fac Res Res Acc Com Active Infowar (turns) . | . . . . . . . . . . . . . . . . Robot Analysis Total 1 | . . . 1 . . . . . . . . . . . . Derelict Logs Recovered . | . . . . . . . . . . . . . . . . Drone Launches 4 | . . . 4 . . . . . . . . . . . . Drone Recoveries 2 | . . . 2 . . . . . . . . . . . . Exploration | -11 -10 -9 -9 -8 -7 -6 -6 -6 -6 -5 -4 -3 -2 -1 -1 ------------- Run | Yrd Mat Mat Sto Mat Fac Fac Ext Cet Arc Fac Fac Res Res Acc Com Turns Passed 13572 | 54 344 636 1049 527 1073 281 1757 287 435 501 625 786 385 2945 1887 Spaces Moved 6433 | 38 158 268 458 256 532 169 853 89 224 246 263 342 154 1533 850 Core 52 | 16 . . . . . . . . . . . . . . 36 Treads 6377 | 22 158 268 458 256 532 169 853 89 224 246 263 342 154 1533 810 Legs 4 | . . . . . . . . . . . . . . . 4 Wheels . | . . . . . . . . . . . . . . . . Hover . | . . . . . . . . . . . . . . . . Flight . | . . . . . . . . . . . . . . . . Fastest Speed 50 | 50 160 160 160 160 160 162 162 162 160 160 162 162 156 145 50 Average Speed 157 | 113 160 161 160 160 160 162 162 162 160 160 162 164 158 154 144 Slowest Speed 240 | 160 160 240 160 165 200 162 163 162 162 162 162 220 239 157 240 Overloaded Moves . | . . . . . . . . . . . . . . . . Propulsion Burnouts . | . . . . . . . . . . . . . . . . Robots Hopped . | . . . . . . . . . . . . . . . . Potential Cave-ins . | . . . . . . . . . . . . . . . . Cave-ins Triggered . | . . . . . . . . . . . . . . . . Exploration Rate (%) 31 | 3 37 28 59 24 18 6 90 48 90 8 9 8 6 38 29 Regions Visited 15 Branch Regions 5 Pre-discovered Areas . | . . . . . . . . . . . . . . . . Known Exits Taken . | . . . . . . . . . . . . . . . . Unknown Exits Taken 15 | 1 1 1 1 1 1 1 1 1 1 1 1 1 1 1 . Scrap Searched . | . . . . . . . . . . . . . . . . Spaces Dug 25 | . . . . . 13 . 2 . . 3 6 . . 1 . Terrain Destroyed 272 | . . . . . 24 . 15 1 . 6 30 16 27 39 114 Melee 1 | . . . . . . . 1 . . . . . . . . Projectile 147 | . . . . . 12 . 14 1 . 6 10 16 25 26 37 AOE 99 | . . . . . 12 . . . . . 19 . . . 68 Terrain Rammed . | . . . . . . . . . . . . . . . . Walls Destroyed . | . . . . . . . . . . . . . . . . Machines Disabled . | . . . . . . . . . . . . . . . . Actions | -11 -10 -9 -9 -8 -7 -6 -6 -6 -6 -5 -4 -3 -2 -1 -1 --------- Run | Yrd Mat Mat Sto Mat Fac Fac Ext Cet Arc Fac Fac Res Res Acc Com Total 8857 | 48 219 416 688 329 684 178 1134 216 279 345 404 496 242 1891 1288 Wait 1227 | . 27 100 154 32 55 . 96 106 31 74 77 86 25 145 219 Move 6418 | 37 157 267 457 255 531 168 852 88 223 245 262 341 153 1532 850 Hop . | . . . . . . . . . . . . . . . . Pick Up 169 | 5 10 4 8 . 16 3 3 3 8 9 9 14 8 30 39 Fast Attach 36 | 1 . 4 7 3 3 . 3 2 1 . 2 2 6 1 1 Attach 98 | 5 1 1 1 . 6 2 . 1 . 2 3 5 3 24 44 Detach 1 | . . . . . . . . . . . . . 1 . . Swap 104 | . 4 9 4 6 13 2 12 5 3 5 4 1 14 13 9 Drop 137 | . 4 8 15 6 20 3 13 5 2 5 9 10 8 13 16 Fire 513 | . 16 23 42 27 40 . 42 6 4 5 37 37 24 101 109 Melee 13 | . . . . . . . 7 . 6 . . . . . . Ram . | . . . . . . . . . . . . . . . . Kick . | . . . . . . . . . . . . . . . . Crush 6 | . . . . . . . 3 . 1 . 1 . . . 1 Escape Stasis . | . . . . . . . . . . . . . . . . Rewire 103 | . . . . . . . 103 . . . . . . . . Trap . | . . . . . . . . . . . . . . . . Miscellaneous 32 | . . . . . . . . . . . . . . 32 . Route ------- -11/Scrapyard -10/Materials -9/Materials (discovered 2 exits: [*Min] / *Sto) -9/Storage -8/Materials -7/Factory -6/Factory (discovered 2 exits: *Fac / *Ext) -6/Extension (discovered 2 exits: *Fac / *Cet) -6/Cetus -6/Archives (discovered 3 exits: *Fac / [*Hub x2]) -5/Factory -4/Factory -3/Research -2/Research -1/Access -1/Command History --------- Turn | Location | Event 6 | -11/Scrapyard | Discovered new exit (range 15) 55 | -11/Scrapyard | Entered Materials 307 | -10/Materials | Discovered new exit (range 16) 318 | -10/Materials | Build established: Mutant 399 | -10/Materials | Entered another Materials area 399 | -9/Materials | Evolved 2 slots: Weapon x2 655 | -9/Materials | Discovered new exit (range 13) 735 | -9/Materials | Build established: Tank 825 | -9/Materials | Discovered new exit (range 11) 1035 | -9/Materials | Entered Storage 1331 | -9/Storage | Repaired Hpw. Shotgun 1370 | -9/Storage | Repaired Hpw. Shotgun 1429 | -9/Storage | Build established: Gunner 1748 | -9/Storage | Discovered new exit (range 15) 2084 | -9/Storage | Entered Materials 2084 | -8/Materials | Evolved 2 slots: Utility x2 2455 | -8/Materials | Discovered new exit (range 15) 2518 | -8/Materials | Build established: Scavenger-Gunner 2611 | -8/Materials | Entered Factory 2611 | -7/Factory | Evolved 2 slots: Propulsion x1, Utility x1 2919 | -7/Factory | Build established: Scavenger-Tank 3481 | -7/Factory | Build established: Scavenger-Gunner 3617 | -7/Factory | Discovered new exit (range 16) 3636 | -7/Factory | Garrison activated, responded to threat 3684 | -7/Factory | Entered another Factory area 3684 | -6/Factory | Evolved 2 slots: Propulsion x1, Utility x1 3917 | -6/Factory | Discovered new exit (range 10) 3941 | -6/Factory | Discovered new exit (range 16) 3965 | -6/Factory | Entered Extension 4724 | -6/Extension | Build established: Commander-Gunner 4746 | -6/Extension | Rescued a captive Derelict 4925 | -6/Extension | Warlord forces began an assault 4987 | -6/Extension | Spotted B-75 Beast 5045 | -6/Extension | Destroyed B-75 Beast 5065 | -6/Extension | Lost 10 allies 5152 | -6/Extension | Rescued a captive Derelict 5214 | -6/Extension | Energy Cycler disabled 5214 | -6/Extension | Rescued a captive Derelict 5214 | -6/Extension | Rescued a captive Derelict 5215 | -6/Extension | Rescued a captive Derelict 5220 | -6/Extension | Rescued a captive Derelict 5371 | -6/Extension | Build established: Scavenger-Gunner 5565 | -6/Extension | Discovered new exit (range 10) 5567 | -6/Extension | Discovered new exit (range 6) 5647 | -6/Extension | Rescued A7 5722 | -6/Extension | Entered Cetus 5722 | -6/Cetus | Accompanied by 7 allies (A7) 5727 | -6/Cetus | Acquired a Cetus Manufacturing Module code from A7 5752 | -6/Cetus | Spotted Cetus Guard 5752 | -6/Cetus | Spotted Cetus Guard 5756 | -6/Cetus | Spotted Cetus Guard 5757 | -6/Cetus | Spotted Cetus Guard 5757 | -6/Cetus | Allies destroyed Cetus Guard 5768 | -6/Cetus | Allies destroyed Cetus Guard 5770 | -6/Cetus | Allies destroyed Cetus Guard 5777 | -6/Cetus | Destroyed Cetus Guard 5784 | -6/Cetus | Extracted ID and sensor layout for unrecognized location from A7's data core 5800 | -6/Cetus | Lost 3 allies 5866 | -6/Cetus | Started Cetus Manufacturing Module 5891 | -6/Cetus | Manufactured an Enhanced Grunt 5913 | -6/Cetus | Discovered new exit (range 16) 5916 | -6/Cetus | Manufactured an Enhanced Grunt 5941 | -6/Cetus | Manufactured an Enhanced Grunt 5966 | -6/Cetus | Manufactured an Enhanced Grunt 5991 | -6/Cetus | Manufactured an Enhanced Grunt 6009 | -6/Cetus | Entered Archives 6009 | -6/Archives | Accompanied by 8 allies 6070 | -6/Archives | Unable to access archive contents 6078 | -6/Archives | Discovered new exit (range 14) 6099 | -6/Archives | Discovered new exit (range 13) 6220 | -6/Archives | Discovered new exit (range 15) 6444 | -6/Archives | Entered Factory 6444 | -5/Factory | Accompanied by 7 allies 6444 | -5/Factory | Evolved 2 slots: Utility x1, Weapon x1 6901 | -5/Factory | Discovered new exit (range 16) 6945 | -5/Factory | Entered another Factory area 6945 | -4/Factory | Accompanied by 5 allies 6945 | -4/Factory | Evolved 2 slots: Propulsion x1, Weapon x1 6999 | -4/Factory | Spotted B-86 Titan 7011 | -4/Factory | Destroyed B-86 Titan 7235 | -4/Factory | Lost 3 allies 7430 | -4/Factory | Build established: Scavenger-Executioner 7450 | -4/Factory | Garrison activated, responded to threat 7487 | -4/Factory | Destroyed 8 combat bots 7546 | -4/Factory | Discovered new exit (range 15) 7570 | -4/Factory | Entered Research 7570 | -3/Research | Evolved 2 slots: Power x1, Utility x1 8240 | -3/Research | Discovered new exit (range 14) 8356 | -3/Research | Entered another Research area 8356 | -2/Research | Evolved 2 slots: Propulsion x1, Weapon x1 8686 | -2/Research | Lost 3 parts (3n) 8705 | -2/Research | Discovered new exit (range 15) 8741 | -2/Research | Entered Access 8741 | -1/Access | Evolved 2 slots: Utility x1, Weapon x1 9887 | -1/Access | Lost 4 parts (1n1u2w) 10259 | -1/Access | Garrison activated, responded to threat 10555 | -1/Access | Destroyed 9 combat bots 10616 | -1/Access | Lost 8 parts (2n4u2w) 11219 | -1/Access | Spotted B-99 Colossus 11234 | -1/Access | Destroyed B-99 Colossus 11235 | -1/Access | System corruption reached 10% 11280 | -1/Access | Lost 3 parts (1n1u1w) 11672 | -1/Access | Discovered new exit (range 8) 11686 | -1/Access | Entered Command 11804 | -1/Command | Spotted B-99 Colossus 11936 | -1/Command | First assault squad dispatched 12146 | -1/Command | Destroyed 13 combat bots 12146 | -1/Command | Lost 6 parts (1n1u4w) 12240 | -1/Command | Phase Generator disabled 13144 | -1/Command | Destroyed 7 combat bots 13341 | -1/Command | Destroyed 7 combat bots 13346 | -1/Command | Lost 7 parts (2u5w) 13436 | -1/Command | Spotted M Guard 13436 | -1/Command | Spotted M Guard 13436 | -1/Command | Spotted Combat Programmer 13439 | -1/Command | Spotted Combat Programmer 13456 | -1/Command | Destroyed Combat Programmer 13475 | -1/Command | Core integrity fell below 50% 13510 | -1/Command | System corruption reached 30% 13537 | -1/Command | Released all parts (8) 13548 | -1/Command | Core integrity fell below 20% 13560 | -1/Command | Lost 27 parts (1p11n4u11w) 13571 | -1/Command | Released all parts (3) 13573 | -1/Command | Destroyed by M Guard with Cooled Nova Cannon Last Messages --------------- 13552_ Acquired 13 matter. 13553_ Acquired Myomer Leg. 13554_ Penetrated by EMDS Slug. 13558_ Acquired Myomer Leg. 13560_ Penetrated by EMDS Slug. 13560_ Myomer Leg destroyed. 13563_ Acquired Phase Gun. 13564_ Combat Programmer resets P-80 Master, system corruption cleaned. 13565_ XBRAIX0|,FR|C5VMSP>O & 13565_ Myomer Leg destroyed. 13567_ R-10 Processor collects Adv. Recalibrator. 13569_ Penetrated by EMDS Slug. 13569_ Particle Reactor destroyed. 13570_ R-10 Processor collects Machine Analyzer. 13571_ Released Graphene Brace. 13571_ Released Particle Reactor. 13571_ Released Phase Gun. [Achievement: Punisher] Map ----- +----------------------------------------------------+ | ???????????????????????# = #??????????????### | | ???????????????????????# #?? ? #????????# # | | ???????????????????????#"""" #? #????????# # | | ????????????????#####??#"""" ! #? #????????# # | | ########?######## ###"""" = # #????????# | | ### #"" # #????#####"# | | # # # #????# | | # # ## % # #????# | | # # "% # #????# | | # *= #"#""%%# ###### | | !![ %% + | | != % % # ** | | " ** | | "" # ** | | "" # | | # # # ###;#;;;; "Y # ! | | # # ### ## YY # "" #=[!!= | | # # ##"" ## # "" #| | | | # # ## #####"T ## # ##"##"# | | ## # #####???### # # *# | | ?## #######?????????# # # | | ??##????????????????# # % # | | ????????????????????# # !! # | | ????????????????????# # [pp ] # | | ????????????????????# # !=p = " | | ????????????????????# @ ##!##+#+#######"# | | ????????????????????# # | | ????????????????????# ## | | ????????????????????# * %+ """" | | ????????????????????# ###==!! """" | | ????????????????????# # ###?# =! """" | | ??????????????????? ???# ! | """" | | ?????????????????? ??# | | ????????????????? ?# | | ???????????????# ################ | | ??????????????? ###### #??????????????? | | ??????????????# #????? #??????????????? | | ??????????????# #????? #??????????????? | | ??????????????# #????? ???????????????? | | ??????????????# #????? ?????????????????? | | ???????????????? ! ?????????????????????????? | | ??????????????????? ?????????????????????????? | | ????????????????????? ?????????????????????????? | | ?????????????????????????????????????????????????? | | ?????????????????????????????????????????????????? | | ?????????????????????????????????????????????????? | | ?????????????????????????????????????????????????? | | ?????????????????????????????????????????????????? | | ?????????????????????????????????????????????????? | | ?????????????????????????????????????????????????? | +----------------------------------------------------+ Best States ------------- Heat Dissipation 121 Energy Generation 43 Energy Capacity 590 Matter Stores 300 Matter Capacity 300 Sight Range 16 Terrain Scan Density 10 Base Temperature (-) 100 Armor Coverage 450 Resistance: TH 15 Point Defense Rating 160 Weapon Cycling 25 Phase Shifting 15 Evasion (%) 55 Targeting Accuracy 16 Core Analysis 6 Recoil Reduction 6 Matter Filtering 30 Offensive Hacking 10 Item Schematics ----------------- None Robot Schematics ------------------ None Fabricated ------------ Nothing Repaired ---------- Hpw. Shotgun | 33% | -9/Storage Hpw. Shotgun | 35% | -9/Storage Studied --------- Adv. Assault Cannon | -7/Factory | Hacked Lgt. Treads | -7/Factory | Hacked Arm. Treads | -7/Factory | Hacked Imp. Medium Treads | -6/Factory | Hacked Alien Tech Used ----------------- None Achievements -------------- Deadly Precision Executioner Gunslinger Like A Rock No Explosion For You Plot Armor Punisher Challenges ------------ None Game ------ Seed SpreadBattleInitializer Manual? 0 Play Time 02:20:52 Cumulative 96.0 hours Start 2026.03.14 @ 02:30:07 End 2026.03.14 @ 06:11:16 Sessions 2 Manual Loads 0 Difficulty Rogue Special Mode None Game No. 72 Rogue 72 Adventurer 0 Explorer 0 Win Type - Total 1 Types 0/0/0/1/0/0/0/0/0/0 Lore% 45 Gallery% 49 Achievement% 46 Wizard Run 0 Options --------- Layout 2 ASCII 0 Keyboard 0 Movement Mouse Keybinds 0 Fullscreen 1 Font 48/Smallcaps Map View 50x44 Zoom Use 0% Tactical HUD 1 Map Filters NONE Filters NONE Steam 1 RUN: 7ea4085f-fdf1-40eb-aef0-e19387abd4a6